Cogmind - Beta 11 @@@ ROGUE MODE // 2022.04.08 @ 22:27:49 Player: Zygos Result: Destroyed by G-34 Mercenary with Small Laser Performance ------------- Evolutions (0) 0 Regions Visited (2) 400 Robots Destroyed (18) 90 Value Destroyed (336) 336 Prototype IDs (0) 0 Alien Tech Used (0) 0 Bonus (0) 0 TOTAL SCORE: 826 Bonus ------- None Cogmind --------- Core Integrity 0/250 Matter 307/400 Energy 125/125 System Corruption 10% Temperature Cool (6) Movement Core (100) Ox1 Location -10/Mines Parts ------- > --- POWER (1) -------- Light Ion Engine > --- PROPULSION (2) --- (None) > --- UTILITY (2) ------ Medium Matter Pod Targeting Computer > --- WEAPON (2) ------- Light Assault Rifle > --- INVENTORY (5) ---- Ion Engine Small Storage Unit ECM Suite Beam Cannon Peak State ------------ > --- POWER ------------ Light Ion Engine > --- PROPULSION ------- Aluminum Leg Aluminum Leg > --- UTILITY ---------- Heat Sink Medium Matter Pod > --- WEAPON ----------- Light Assault Rifle Mining Laser > --- INVENTORY -------- Medium Laser [Rating: 7] Favorites ----------- Power Light Ion Engine Engine Light Ion Engine Propulsion Aluminum Leg Leg Aluminum Leg Utility Medium Matter Pod Device Heat Sink Storage Medium Matter Pod Processor Targeting Computer Weapon Light Assault Rifle Energy Gun Medium Laser Ballistic Gun Light Assault Rifle Launcher Grenade Launcher Special Weapon Mining Laser Build | -11 -10 -10 ------- Run | Scr Mat Min Slots Evolved . | . . . Power . | . . . Propulsion . | . . . Utility . | . . . Weapon . | . . . Parts Attached 23 | 6 16 1 Power 4 | 1 2 1 Engine 4 | 1 2 1 Core . | . . . Reactor . | . . . Propulsion 6 | 2 4 . Treads . | . . . Leg 6 | 2 4 . Wheel . | . . . Hover . | . . . Flight . | . . . Utility 3 | 1 2 . Device 1 | 1 . . Storage 1 | . 1 . Processor 1 | . 1 . Hackware . | . . . Protection . | . . . Artifact . | . . . Weapon 10 | 2 8 . Energy Gun 2 | 1 1 . Energy Cannon . | . . . Ballistic Gun 5 | 1 4 . Ballistic Cannon . | . . . Launcher 1 | . 1 . Special Weapon 2 | . 2 . Impact Weapon . | . . . Slashing Weapon . | . . . Piercing Weapon . | . . . Special Melee Weapon . | . . . Unidentified Prototypes . | . . . Parts Lost 8 | . 5 3 Power 1 | . 1 . Propulsion 4 | . 2 2 Utility . | . . . Weapon 3 | . 2 1 Highest Loss Streak 3 | . 3 3 To Critical Strikes . | . . . Average Slot Usage (%) 93 | . 92 97 Engine 13 | . 13 14 Leg 27 | . 27 25 Device 7 | . 9 . Storage 12 | . 12 14 Processor 5 | . 1 14 Energy Gun 1 | . 2 . Ballistic Gun 24 | . 23 28 Naked Turns . | . . . Heaviest Build 9 | 7 9 9 Greatest Support 20 | 20 20 20 Greatest Overweight (x) 2 | . 1 2 Average Overweight (x) . | . . . Largest Inventory Capacity 5 | 5 5 5 Average Capacity 5 | 5 5 5 Most Carried 5 | 2 5 4 Average Carried 1 | . 2 3 Final Capacity 5 | 5 5 5 Final Carried 4 | 1 3 4 Class Distribution -------------------- 54% | Scavenger-Mutant 45% | Mutant Dominant Class ---------------- Scavenger-Mutant | -10/Materials Scavenger-Mutant | -10/Mines Resources | -11 -10 -10 ----------- Run | Scr Mat Min Matter Collected 579 | 275 198 106 Remotely . | . . . Salvage Created 390 | 38 251 101 Parts 32 | 2 22 8 Haulers Intercepted . | . . . Recyclers Shooed . | . . . Parts Field Recycled . | . . . Retrieved Matter . | . . . Parts Self-Destructed . | . . . Prevented . | . . . Kills | -11 -10 -10 ------- Run | Scr Mat Min Combat Hostiles Destroyed 16 | 1 10 5 Guns 12 | 1 6 5 Cannons 2 | . 2 . AOE 2 | . 2 . Classes Destroyed 4 | 1 3 . Worker 1 | . 1 . Builder 1 | . 1 . Swarmer 10 | . 6 4 Grunt 6 | 1 4 1 Best Kill Streak 3 | 1 3 2 Combat Bots Only 3 | 1 3 2 Max Kills in Single Turn 2 | 1 2 1 Gunslinging . | . . . Exploded 1 | . 1 . Melee . | . . . Uniques/NPCs Destroyed . | . . . Combat | -11 -10 -10 -------- Run | Scr Mat Min Damage Taken 1196 | 96 805 295 Core 252 | 33 168 51 Absorbed by Shields . | . . . Core Remaining (%) 86 | 86 . . Volleys Fired 60 | 15 31 14 Largest 2 | 2 2 2 Hottest 120 | 70 120 40 Shots Fired 111 | 30 53 28 Gun 104 | 30 46 28 Cannon . | . . . Launcher 4 | . 4 . Special 3 | . 3 . Kinetic 78 | 15 35 28 Thermal 29 | 15 14 . Explosive 4 | . 4 . Electromagnetic . | . . . Robot Hit Streak 11 | 5 11 7 Robot Miss Streak 6 | 6 3 3 Penetration Max . | . . . Secondary Targets 1 | . . 1 Max Gunslinging Chain 1 | . . 1 Shots Hit Robots 68 | 16 33 19 Core Hits 26 | 2 16 8 Critical Kills 1 | . 1 . Critical Parts Destroyed 1 | . . 1 Critical Strikes 3 | . 2 1 Burn 1 | . 1 . Destroy 2 | . 1 1 Melee Attacks . | . . . Impact . | . . . Slashing . | . . . Piercing . | . . . Sneak Attacks . | . . . Combat Hostiles . | . . . Follow-up Attacks . | . . . Damage Inflicted 825 | 167 493 165 Guns 610 | 167 278 165 Cannons . | . . . Explosions 167 | . 167 . Melee . | . . . Ramming . | . . . Kinetic 394 | 65 164 165 Thermal 264 | 102 162 . Explosive 167 | . 167 . Electromagnetic . | . . . Impact . | . . . Slashing . | . . . Piercing . | . . . Highest Corruption 10 | . 10 10 Average Corruption 9 | . 9 10 Corruption Purged . | . . . Corruption Blocked . | . . . Effects 39 | . 25 14 Message Errors 11 | . 7 4 Matter Fused 8 | . 4 4 Heat Flow Errors 3 | . 3 . Energy Discharges 9 | . 5 4 Data Loss (minor) 1 | . 1 . Data Loss (major) 4 | . 3 1 Misfires 3 | . 2 1 Overload Shots . | . . . Overflow Damage . | . . . Projectiles . | . . . Explosions . | . . . Melee . | . . . Knockbacks . | . . . Impact . | . . . Kinetic . | . . . Secondary . | . . . Self-Inflicted Damage 40 | . 40 . Shots 1 | . 1 . Rammed . | . . . Targets Rammed . | . . . Kicked . | . . . Crushed . | . . . Highest Temperature 224 | 224 219 15 Average Temperature 59 | 83 49 7 Received Heat Transfer 243 | 54 84 105 Effects 1 | 1 . . Energy Bleed 1 | 1 . . Siege Activations . | . . . Robots Corrupted . | . . . Combat Hostiles . | . . . Parts Fried . | . . . Impact Corruptions . | . . . Robots Melted . | . . . Combat Hostiles . | . . . Parts Melted . | . . . Heat Transferred 803 | 296 507 . Parts Sabotaged . | . . . Parts Stolen . | . . . Parts Stripped . | . . . Power Chain Reactions . | . . . Missiles Intercepted . | . . . Alert | -11 -10 -10 ------- Run | Scr Mat Min Peak Influence 331 | 30 331 207 Initial 52 | . 13 52 Average 96 | 15 160 89 Maximum Alert Level 1 | . 1 1 Low Security (%) 83 | 100 66 96 Level 1 16 | . 33 3 Level 2 . | . . . Level 3 . | . . . Level 4 . | . . . Level 5 . | . . . High Security . | . . . Max Security . | . . . Squads Dispatched 1 | . 1 . Investigation . | . . . Extermination . | . . . Reinforcement 1 | . 1 . Assault . | . . . Garrison . | . . . Intercept . | . . . Searches Triggered . | . . . Construction Impeded . | . . . Haulers Reinforced . | . . . Active Scanning Responses . | . . . Cargo Convoy Interrupts . | . . . Stealth | -11 -10 -10 --------- Run | Scr Mat Min Distress Signals . | . . . Communications Jammed . | . . . Distress Signals . | . . . Times Spotted 23 | 2 12 9 Peak Tracking Total 5 | 1 3 5 Tactical Retreats 4 | 2 . 2 Traps | -11 -10 -10 ------- Run | Scr Mat Min Traps Triggered 1 | . 1 . Indirectly . | . . . Trap Hack Attempts . | . . . Triggered . | . . . Disarmed . | . . . Reprogrammed . | . . . Reused . | . . . Traps Extracted . | . . . Installed . | . . . Triggered . | . . . Machines | -11 -10 -10 ---------- Run | Scr Mat Min Machines Disabled . | . . . Max in Single Turn . | . . . Machines Sabotaged . | . . . Garrisons Compromised . | . . . Overloaded Fab Kills . | . . . Hacking | -11 -10 -10 --------- Run | Scr Mat Min Machines Accessed 1 | . 1 . Terminals 1 | . 1 . Fabricators . | . . . Repair Stations . | . . . Recycling Units . | . . . Scanalyzers . | . . . Garrison Access . | . . . Total Hacks 2 | . 2 . Successful 2 | . 2 . Failed . | . . . Catastrophic . | . . . Database Lockouts . | . . . Manual . | . . . Terminals 2 | . 2 . Fabricators . | . . . Repair Stations . | . . . Recycling Units . | . . . Scanalyzers . | . . . Garrison Access . | . . . Terminal Hacks 2 | . 2 . Record 1 | . 1 . Hauler Manifests 1 | . 1 . Fabricator Hacks . | . . . Repair Station Hacks . | . . . Recycling Unit Hacks . | . . . Scanalyzer . | . . . Garrison Access Hacks . | . . . Unauthorized Hacks . | . . . Terminals . | . . . Fabricators . | . . . Repair Stations . | . . . Recycling Units . | . . . Scanalyzers . | . . . Garrison Access . | . . . Data Cores Recovered . | . . . Used . | . . . Hacking Detections 1 | . 1 . Full Trace Events . | . . . Feedback Events . | . . . Feedback Blocked . | . . . Robot Schematics Acquired . | . . . Robots Built . | . . . Authchips . | . . . Time . | . . . Total Robot Build Rating . | . . . Part Schematics Acquired . | . . . Parts Built . | . . . Authchips . | . . . Time . | . . . Total Part Build Rating . | . . . Parts Repaired . | . . . Time . | . . . Parts Recycled . | . . . Recycled Matter . | . . . Retrieved Matter . | . . . Retrieved Components . | . . . Parts Scanalyzed . | . . . Part Schematics Acquired . | . . . Parts Damaged . | . . . Bothacking | -11 -10 -10 ------------ Run | Scr Mat Min Used RIF Installer . | . . . Robots Hacked . | . . . Non-combat . | . . . Combat . | . . . Robot Hacks Applied . | . . . Relay Couplers Released . | . . . Fabnet Peak Effective % . | . . . Robots Rewired . | . . . Allies Hacked . | . . . Hacks Repelled . | . . . Allies | -11 -10 -10 -------- Run | Scr Mat Min Total Allies . | . . . Largest Group . | . . . Highest-Rated Group . | . . . Highest-Rated Ally . | . . . Total Orders . | . . . Ally Attacks . | . . . Total Damage . | . . . Kills . | . . . Allies Corrupted . | . . . Allies Melted . | . . . Intel | -11 -10 -10 ------- Run | Scr Mat Min Robot Analysis Total . | . . . Derelict Logs Recovered . | . . . Drone Launches . | . . . Drone Recoveries . | . . . Exploration | -11 -10 -10 ------------- Run | Scr Mat Min Turns Passed 1676 | 593 779 304 Spaces Moved 1167 | 403 546 218 Core 25 | 15 7 3 Treads . | . . . Legs 1142 | 388 539 215 Wheels . | . . . Hover . | . . . Flight . | . . . Fastest Speed 50 | 50 100 120 Average Speed 119 | 117 119 120 Slowest Speed 150 | 120 120 150 Overloaded Moves . | . . . Propulsion Burnouts . | . . . Robots Hopped . | . . . Cave-ins Triggered 2 | . 2 . Exploration Rate (%) 39 | 16 53 48 Regions Visited 2 Branch Regions 1 Pre-discovered Areas . | . . . Known Exits Taken . | . . . Unknown Exits Taken 2 | 1 1 . Scrap Searched 2 | . . 2 Spaces Dug . | . . . Terrain Destroyed 31 | . 31 . Melee . | . . . Projectile . | . . . AOE 31 | . 31 . Terrain Rammed . | . . . Walls Destroyed . | . . . Machines Disabled . | . . . Actions | -11 -10 -10 --------- Run | Scr Mat Min Total 1354 | 496 621 237 Wait 75 | 66 6 3 Move 1164 | 402 544 218 Hop . | . . . Pick Up 24 | 7 16 1 Fast Attach . | . . . Attach 13 | 6 7 . Detach . | . . . Swap 10 | . 9 1 Drop 7 | . 7 . Fire 60 | 15 31 14 Melee . | . . . Ram . | . . . Kick . | . . . Crush . | . . . Escape Stasis 1 | . 1 . Rewire . | . . . Trap . | . . . Miscellaneous . | . . . Route ------- -11/Scrapyard -10/Materials (discovered 3 exits: [*Mat x2] / [*Min]) -10/Mines (discovered 1 exit: [*Mat]) History --------- Turn | Location | Event 2 | -11/Scrapyard | Met Revision 17 55 | -11/Scrapyard | Discovered new exit (range 8) 594 | -11/Scrapyard | Entered Materials 595 | -10/Materials | Build established: Mutant 678 | -10/Materials | Discovered new exit (range 7) 684 | -10/Materials | Crushed by falling debris 685 | -10/Materials | Crushed by falling debris 685 | -10/Materials | Core integrity fell below 50% 685 | -10/Materials | System corruption reached 10% 716 | -10/Materials | Lost 3 parts (2n1w) 836 | -10/Materials | Discovered new exit (range 8) 946 | -10/Materials | Core integrity fell below 20% 970 | -10/Materials | Discovered new exit (range 13) 1044 | -10/Materials | Build established: Scavenger-Mutant 1373 | -10/Materials | Entered Mines 1443 | -10/Mines | Discovered new exit (range 11) 1677 | -10/Mines | Destroyed by G-34 Mercenary with Small Laser Last Messages --------------- K-01 Serf collects debris. System corrupted: Energy discharge (-26). System corrupted: Energy discharge (-42). T-07 Excavator is excavating. FCLWH2#ZRR ZOB/OM:0Z System corrupted: Matter fused (-9). Aluminum Leg destroyed. G-47 Trooper destroyed. System corrupted: Matter fused (-6). K-01 Serf collects debris. Lgt. Assault Rifle destroyed. Map ----- +----------------------------------------------------+ | | | | | | | | | ?????????????????????????????????????????????????? | | ?????????????????????????????????????????????????? | | ?????????????????????????????????????????????????? | | ?????????????????????????????????????????????????? | | ?????????????????????????????????????????????????? | | ?????????????????????????????????????????????????? | | ?????????????????????????????????????????????????? | | ?????????????????????????????????????????????????? | | ########?????????????????????????????????????????? | | # #?????????????????????????????????????????? | | # #?????????????????????????????????????????? | | # #?????????????????????#???????????????????? | | # """ #????????????????????# ###????????????????? | | # """ #????????????????????# ?????????????????? | | # """ #????????????????????# ?????????????????? | | # #???????######???????# ?????????????????? | | ## ####??????## ##??????# #?????????????????? | | ?#=[#?????????# #??????# #?????????????????? | | ?# #????????## #??????# #??????????#??????? | | ?# =#??????### ######?# #???????## ???????? | | ?# #?????## ## ### #?????? ????????? | | ?# #?????# @ g #????? #?????????? | | ?# ####### ## #???## ##T#??????? | | ?# ### ##### #??????? | | ?# / t### =%! [%[ < #??????? | | ?########### # ## % *% #??????? | | ???????????# ## ######## """ " | | ???????????# ### ###???# """ ### | | ?????####?## ### ##??? """ #??????" | | ????## ### #### #??????? | | ????# ##### ## ## ###???????? | | ????# ##???## ####### ## #?????????? | | ????# ##????######?????# ## #?????????? | | ????# ## #???????????????# ## #?????????? | | ???## #### #???????????????# #?????????? | | ???# ##??# ##??????????????#### #??####???? | | ???# #???# ##????????????????# #### ###?? | | ???# #???# ##???????????????# ##? | | ???# ##?# ??????????????# ## | | ???## ## ??????????????##### # | | ????## ?????????????????# # | | ?????# ## ## #?????????????????## | | ?????# #######?#### ???????????????????### | | ?????# #??????????? ??????????????????????## | | ??####! #??????????????????????????????????## | | ??# ! #??????????????????????????????????# | +----------------------------------------------------+ Best States ------------- Heat Dissipation 35 Energy Generation 10 Energy Capacity 250 Matter Stores 327 Matter Capacity 400 Sight Range 16 Terrain Scan Density 10 Evasion (%) 55 Targeting Accuracy 5 Item Schematics ----------------- None Robot Schematics ------------------ None Fabricated ------------ Nothing Alien Tech Used ----------------- None Achievements -------------- System Compromised Unlikely Earthworm Challenges ------------ None Game ------ Seed AngularReactiveRipper Manual? 0 Play Time 00:22:34 Cumulative 2.5 hours Start 2022.04.08 @ 21:59:24 End 2022.04.08 @ 22:27:49 Sessions 1 Manual Loads 0 Difficulty Rogue Special Mode None Game No. 2 Rogue 2 Adventurer 0 Explorer 0 Win Type - Total 0 Types 0/0/0/0/0/0/0/0/0 Lore% 1 Gallery% 2 Achievement% 7 Wizard Run 0 Options --------- ASCII 0 Keyboard 0 Movement Numpad Keybinds 0 Fullscreen 0 Font 16/SmallcapsGlow Map View 76x50 Tactical HUD 0 Map Filters NONE Filters NONE Steam 1 RUN: cc14d06f-1ed0-4070-861f-f9ebaa98878a